bitfinex-derivatives/quotes_BTCF0:USTF0_20210111
["timestamp","ask_amount","ask_price","bid_price","bid_amount"]
[1610376105720,0.07246,33331.0,33287.0,0.08709094]
[1610376106122,0.03436,33331.0,33288.0,0.00048085]
[1610376106522,3.8034,33351.0,33288.0,0.00048085]
[1610376106719,3.8034,33351.0,33288.0,0.09128085]
[1610376106920,3.8034,33351.0,33288.0,0.128138]
[1610376107119,3.8034,33351.0,33324.0,0.13632608]
[1610376107323,0.00036855,33350.0,33324.0,0.10159]
[1610376107722,0.00036855,33350.0,33325.0,0.00048066]
[1610376107922,0.00036853,33360.0,33325.0,0.00048066]
[1610376108122,0.00036853,33349.0,33325.0,0.00048066]
[1610376108321,0.00036853,33359.0,33325.0,0.00048066]
[1610376108722,0.00036853,33348.0,33325.0,0.00048066]
[1610376108922,0.00036853,33358.0,33325.0,0.00048066]
[1610376109123,0.2754,33361.0,33325.0,0.00048066]
[1610376109124,0.13632608,33326.0,33325.0,0.00048066]
[1610376109523,0.13632608,33326.0,33324.0,0.10023507]
[1610376110525,0.13632608,33326.0,33287.0,0.08661]
[1610376110724,0.13632608,33326.0,33230.0,0.2999]
[1610376111124,0.13632608,33315.0,33271.0,0.03734863]
[1610376111326,0.13632608,33315.0,33231.0,0.03734901]
[1610376111525,0.13632608,33315.0,33308.0,0.00048078]
[1610376111725,0.09597,33351.0,33308.0,0.07414078]
[1610376111925,0.09597,33351.0,33308.0,0.07366]
[1610376112125,0.00036868,33350.0,33309.0,0.00048078]
[1610376113628,0.13632608,33310.0,33309.0,0.00048078]
[1610376114028,0.07206,33342.0,33308.0,0.07366]
[1610376114627,0.77847192,33339.0,33308.0,0.07366]
[1610376115028,0.77847155,33340.0,33308.0,0.07366]
[1610376115429,0.78094497,33327.0,33308.0,0.07366]
[1610376115629,0.13632608,33309.0,33308.0,0.07366]
[1610376116031,0.78095575,33329.0,33308.0,0.07366]
[1610376116634,0.78300504,33335.0,33309.0,0.00048068]
[1610376117030,0.78292173,33343.0,33309.0,0.08282068]
[1610376117234,0.78292173,33343.0,33309.0,0.08234]
[1610376117435,0.78292173,33343.0,33310.0,0.00048062]
[1610376117633,0.13632608,33325.0,33310.0,0.00048062]
[1610376119736,0.7893196,33332.0,33314.0,0.13632608]
[1610376120135,0.78927929,33333.0,33314.0,0.13632608]
[1610376120336,0.78927929,33333.0,33309.0,0.08234]
[1610376120535,0.78925291,33334.0,33309.0,0.08234]
[1610376120936,0.89685386,33338.0,33310.0,0.00048057]
[1610376120937,0.78923289,33335.0,33310.0,0.00048057]
[1610376121337,0.78930384,33336.0,33310.0,0.00048057]
[1610376121736,0.78930384,33336.0,33322.0,0.13632608]
[1610376121937,0.78930384,33336.0,33322.0,0.21415608]
[1610376122137,0.78930384,33336.0,33322.0,0.07783]
[1610376122338,0.78934111,33341.0,33322.0,0.07783]
[1610376122737,0.78927118,33336.0,33322.0,0.07783]
[1610376122940,0.78945894,33328.0,33322.0,0.07783]
[1610376123438,0.78964649,33324.0,33322.0,0.07783]
[1610376123638,0.13632608,33323.0,33322.0,0.07783]
[1610376123838,0.13632608,33323.0,33309.0,0.08234]
[1610376123839,1.82347621,33323.0,33309.0,0.08234]
[1610376124038,1.82347621,33323.0,33294.0,4.4605]
[1610376124240,0.78975692,33319.0,33294.0,4.4605]
[1610376124638,0.79007826,33317.0,33295.0,0.00048081]
[1610376124839,0.79000926,33322.0,33295.0,0.00048081]
[1610376125037,0.79000926,33322.0,33295.0,0.10538081]
[1610376125340,0.78994364,33321.0,33295.0,0.10538081]
[1610376125540,0.78994364,33321.0,33296.0,0.00048072]
[1610376125739,0.79035738,33324.0,33296.0,0.00048072]
[1610376126039,0.79035738,33324.0,33304.0,0.13632608]
[1610376126240,0.79030567,33327.0,33304.0,0.13632608]
[1610376126441,0.79030567,33327.0,33305.0,0.00048067]
[1610376126641,0.79074737,33326.0,33305.0,0.00048067]
[1610376126842,0.79084524,33324.0,33305.0,0.00048067]
[1610376127243,0.79087452,33319.0,33305.0,0.00048067]
[1610376127643,0.79141464,33321.0,33305.0,0.00048067]
[1610376128047,0.13632608,33306.0,33305.0,0.00048067]
[1610376129648,0.09602608,33306.0,33305.0,0.00048067]
[1610376129846,0.08892608,33306.0,33305.0,0.00048067]
[1610376131951,0.79347597,33317.0,33305.0,0.00048067]
[1610376132154,0.79348265,33315.0,33305.0,0.00048067]
[1610376132553,0.13632608,33306.0,33305.0,0.00048067]
[1610376133654,0.11952608,33306.0,33305.0,0.00048067]
[1610376134356,0.79437626,33313.0,33305.0,0.00048067]
[1610376134357,0.79453326,33310.0,33305.0,0.00048067]
[1610376134763,0.79492879,33307.0,33304.0,0.11219427]
[1610376134956,1.58967696,33323.0,33295.0,0.1049]
[1610376134957,0.13632608,33305.0,33295.0,0.1049]
[1610376135155,0.13632608,33305.0,33264.0,0.13632608]
[1610376135356,0.79570107,33297.0,33296.0,0.00048076]
[1610376135557,0.79570107,33297.0,33285.0,0.03735976]
[1610376135758,1.70005055,33297.0,33285.0,0.03735976]
[1610376135956,1.70041938,33297.0,33296.0,0.00048092]
[1610376136157,0.00036888,33296.0,33286.0,0.000481]
[1610376136356,3.97960102,33297.0,33219.0,2.01234363]
[1610376136558,3.97960102,33297.0,33217.0,0.091]
[1610376136559,2.71340912,33297.0,33284.0,5.14025]
[1610376136758,1.01312236,33291.0,33287.0,0.00048105]
[1610376136957,0.13632608,33288.0,33285.0,0.00048105]
[1610376137158,1.83721522,33288.0,33284.0,5.14025]
[1610376137358,1.83721522,33288.0,33284.0,0.10825]
[1610376137558,0.00036892,33287.0,33286.0,0.00048235]
[1610376137758,0.00036892,33287.0,33285.0,0.00048235]
[1610376137961,2.71509782,33287.0,33286.0,0.00048237]
[1610376138361,2.71509782,33287.0,33284.0,0.10825]
[1610376138362,2.71509782,33287.0,33285.0,0.00048237]
[1610376138559,2.7147289,33287.0,33286.0,0.00048235]
[1610376138760,0.13632608,33288.0,33286.0,0.00048235]
[1610376138960,3.37638633,33287.0,33286.0,0.00048235]
[1610376139159,3.37638633,33287.0,33285.0,0.00048235]
[1610376139359,3.37638633,33287.0,33284.0,0.10825]
[1610376139562,2.71462709,33286.0,33284.0,0.10825]
[1610376139863,2.71462709,33286.0,33285.0,0.00048236]
[1610376140061,1.2667536,33290.0,33285.0,0.00048236]
[1610376140261,1.91841314,33286.0,33285.0,0.00048236]
[1610376140462,2.7147663,33286.0,33285.0,0.00048236]
[1610376140863,2.85109238,33286.0,33285.0,0.00048236]
[1610376141061,1.83760134,33286.0,33285.0,0.00048236]
[1610376141462,0.79635316,33286.0,33285.0,0.00048231]
[1610376141862,0.9044916,33287.0,33285.0,0.00048231]
[1610376141863,0.79584966,33287.0,33285.0,0.00048231]
[1610376142063,0.37472966,33287.0,33285.0,0.00048231]
[1610376142263,5.0281,33291.0,33286.0,0.0004822]
[1610376142462,5.0281,33291.0,33285.0,0.00048213]
[1610376142662,5.0281,33291.0,33284.0,0.10825]
[1610376142663,5.0281,33291.0,33287.0,0.00048213]
[1610376142863,0.13632608,33288.0,33287.0,0.00048213]
[1610376143065,5.0281,33291.0,33286.0,0.00048213]
[1610376143267,5.0281,33291.0,33285.0,0.0004821]
[1610376143465,0.37281769,33290.0,33287.0,0.0004821]
[1610376143865,0.90428387,33288.0,33286.0,0.00048213]
[1610376144065,0.90428387,33288.0,33284.0,0.10825]
[1610376144266,0.90428387,33288.0,33220.0,2.05248322]
[1610376144267,0.90418735,33287.0,33219.0,2.05288052]
[1610376144667,1.3854739,33290.0,33285.0,0.00048215]
[1610376144866,0.13632608,33286.0,33285.0,0.09012]
[1610376145066,2.54051347,33286.0,33285.0,0.08963785]
[1610376145267,3.55319983,33286.0,33285.0,3.785e-05]
[1610376145669,4.81899116,33286.0,33213.0,8.2093]
[1610376145868,10.20924385,33286.0,33245.0,0.00048246]
[1610376146073,10.20924385,33286.0,33245.0,0.08754246]
[1610376146074,0.90449584,33263.0,33245.0,0.08754246]
[1610376146471,0.90414011,33262.0,33245.0,0.08754246]
[1610376146669,0.90414011,33262.0,33246.0,0.0004826]
[1610376146870,0.13632608,33247.0,33246.0,0.0004826]
[1610376147470,0.13632608,33247.0,33245.0,0.08706]
[1610376147869,0.90368147,33258.0,33245.0,0.08706]
[1610376148270,0.90379741,33251.0,33245.0,0.08706]
[1610376148671,0.90286033,33252.0,33245.0,0.08706]
[1610376149070,0.13632608,33246.0,33245.0,0.08706]
[1610376149569,1.01030967,33256.0,33245.0,0.08706]
[1610376149769,0.90192188,33253.0,33245.0,0.08706]
[1610376150573,0.90192188,33253.0,33245.0,0.06736]
[1610376150973,0.13632608,33246.0,33245.0,0.06736]
[1610376151173,0.13632608,33246.0,33221.0,3.9398]
[1610376152773,2.39928,33245.0,33221.0,3.9398]
[1610376153174,0.13632608,33222.0,33221.0,3.9398]
[1610376153375,1.5,33241.0,33221.0,3.9398]
[1610376153573,1.5,33241.0,33221.0,4.04181]
[1610376153574,0.89786951,33235.0,33221.0,4.04181]
[1610376153975,0.89812064,33229.0,33221.0,4.04181]
[1610376154375,0.89820906,33227.0,33221.0,0.10201]
[1610376154576,0.89659045,33228.0,33221.0,0.10201]
[1610376154775,1.57786293,33242.0,33221.0,0.10201]
[1610376154776,0.89657611,33229.0,33221.0,0.10201]
[1610376155176,0.13632608,33222.0,33221.0,0.05201]
[1610376155376,0.89657611,33229.0,33221.0,0.05201]
[1610376155577,0.89514925,33228.0,33195.0,0.1087]
[1610376155777,0.89514731,33227.0,33145.0,0.0894]
[1610376156177,0.89516786,33228.0,33146.0,0.00049726]
[1610376156378,0.89516786,33228.0,33146.0,0.1206632]
[1610376156576,1.5,33240.0,33146.0,0.1206632]
[1610376156577,0.89381082,33230.0,33146.0,0.1206632]
[1610376156777,0.2936,33227.0,33147.0,0.00049726]
[1610376157177,0.2936,33227.0,33181.0,0.13632608]
[1610376157378,1.7936,33227.0,33181.0,0.06989]
[1610376157777,0.2936,33227.0,33181.0,0.06989]
[1610376157978,0.89231532,33225.0,33181.0,0.06989]
[1610376158378,0.2936,33227.0,33181.0,0.06989]
[1610376158379,1.18465414,33227.0,33181.0,0.06989]
[1610376158779,0.89086286,33226.0,33181.0,0.06989]
[1610376159180,0.13632608,33182.0,33181.0,0.06989]
[1610376159381,0.2936,33227.0,33181.0,0.06989]
[1610376159581,1.37086943,33225.0,33181.0,0.06989]
[1610376159981,0.88935347,33224.0,33181.0,0.06989]
[1610376160580,1.18142817,33227.0,33181.0,0.06989]
[1610376160981,1.5,33226.0,33181.0,0.06989]
[1610376161182,0.13632608,33182.0,33181.0,0.06989]
[1610376161382,1.5,33226.0,33181.0,0.06989]
[1610376161383,0.88648172,33220.0,33181.0,0.06989]
[1610376161585,1.5,33219.0,33181.0,0.06989]
[1610376161783,2.38653771,33219.0,33181.0,0.06989]
[1610376162183,0.88653771,33219.0,33181.0,0.06989]
[1610376162383,0.88655458,33216.0,33146.0,0.08321]
[1610376162584,0.0751,33216.0,33114.0,0.0221]
[1610376162985,0.88508961,33206.0,33114.0,0.0221]
[1610376163184,0.98900961,33206.0,33115.0,0.00047216]
[1610376163386,0.88291256,33205.0,33115.0,0.11138216]
[1610376163587,0.88291256,33205.0,33116.0,1.5]
[1610376163785,0.88249785,33230.0,33117.0,0.0913]
[1610376163985,0.88249785,33230.0,33117.0,0.128721]
[1610376164189,0.98777629,33253.0,33126.0,2.05964889]
[1610376164387,0.98777629,33253.0,33127.0,1.5896]
[1610376164588,0.98671241,33270.0,33141.0,2.04906041]
[1610376164788,0.98671241,33270.0,33142.0,1.5]
[1610376164997,0.9863595,33281.0,33152.0,2.04128422]
[1610376165189,0.9863595,33281.0,33153.0,1.5]
[1610376165390,0.98644692,33276.0,33153.0,1.5]
[1610376165591,0.98644692,33276.0,33154.0,0.03737371]
[1610376165792,0.9859277,33279.0,33154.0,0.03737371]
[1610376166092,0.98600967,33278.0,33154.0,0.03737371]
[1610376166495,0.98592986,33279.0,33154.0,0.03737371]
[1610376166892,0.98602786,33277.0,33154.0,0.03737371]
[1610376167294,4.6426,33276.0,33164.0,4.9729]
[1610376167492,4.6426,33276.0,33164.0,5.04506]
[1610376167893,0.13632608,33264.0,33231.0,0.13632608]
[1610376168293,2.608e-05,33264.0,33231.0,0.13632608]
[1610376168693,0.251,33269.0,33231.0,0.13632608]
[1610376168893,0.2335,33269.0,33231.0,0.24926608]
[1610376169093,0.1571,33269.0,33231.0,0.11294]
[1610376169495,3.3725,33298.0,33231.0,0.11294]
[1610376169693,3.3725,33298.0,33232.0,0.08947106]
[1610376170094,3.3725,33298.0,33232.0,0.00047106]
[1610376170294,0.13632608,33289.0,33274.0,0.13632608]
[1610376170697,0.10805,33294.0,33231.0,0.11294]
[1610376171495,3.3725,33298.0,33231.0,0.11294]
[1610376172295,0.13632608,33253.0,33235.0,0.13632608]
[1610376172496,3.3725,33298.0,33232.0,0.00047106]
[1610376172695,3.3725,33298.0,33231.0,0.11294]
[1610376172896,0.98715427,33297.0,33231.0,0.11294]
[1610376173399,0.98715427,33297.0,33232.0,0.00047112]
[1610376173797,3.3725,33298.0,33232.0,0.00047112]
[1610376174399,0.13632608,33274.0,33273.0,0.13632608]
[1610376174798,3.3725,33298.0,33273.0,0.13632608]
[1610376174998,3.3725,33298.0,33273.0,0.20571825]
[1610376175197,3.3725,33298.0,33273.0,0.07123]
[1610376176299,0.13632608,33274.0,33273.0,0.07123]
[1610376177200,0.13632608,33274.0,33233.0,0.021]
[1610376178299,0.98923845,33298.0,33233.0,0.021]
[1610376178900,0.98923845,33298.0,33254.0,0.13632608]
[1610376179101,0.98959468,33297.0,33233.0,0.021]
[1610376179301,0.98959468,33297.0,33254.0,0.10362]
[1610376179504,0.98818678,33292.0,33254.0,0.10362]
[1610376179901,0.98590533,33287.0,33254.0,0.10362]
[1610376180101,1.06329533,33287.0,33254.0,0.10362]
[1610376180301,0.98127005,33280.0,33254.0,0.10362]
[1610376180500,1.08943005,33280.0,33254.0,0.10362]
[1610376180701,0.9816714,33278.0,33254.0,0.10362]
[1610376180902,0.13632608,33255.0,33254.0,0.10362]
[1610376181102,1.63632608,33255.0,33254.0,0.10362]
[1610376181302,0.13632608,33255.0,33233.0,0.021]
[1610376181905,0.0975,33256.0,33233.0,0.021]
[1610376182104,0.97381872,33253.0,33233.0,0.021]
[1610376182503,0.97261139,33251.0,33233.0,0.021]
[1610376182902,1.31322083,33256.0,33233.0,0.021]
[1610376182903,0.97018761,33248.0,33233.0,0.021]
[1610376183305,0.96926774,33247.0,33233.0,0.021]
[1610376183505,0.11682608,33234.0,33233.0,0.021]
[1610376185106,0.08691,33236.0,33233.0,0.021]
[1610376185309,0.96290862,33235.0,33201.0,0.07659]
[1610376185509,0.13632608,33202.0,33201.0,0.07659]
[1610376185910,0.13632608,33202.0,33201.0,0.0747479]
[1610376186510,0.22712608,33202.0,33201.0,0.0747479]
[1610376187111,0.13632608,33202.0,33136.0,0.0896]
[1610376187510,0.09789,33222.0,33172.0,0.13632608]
[1610376187710,0.09789,33222.0,33172.0,0.23626608]
[1610376188512,0.09789,33222.0,33172.0,0.09994]
[1610376189511,0.13632608,33173.0,33172.0,0.09994]
[1610376190112,0.10598,33212.0,33172.0,0.09994]
[1610376191913,0.13632608,33173.0,33172.0,0.09994]
[1610376192516,0.10412608,33173.0,33172.0,0.09994]
[1610376192913,0.10412608,33173.0,33164.0,0.13632608]
[1610376193615,0.96015852,33221.0,33164.0,0.13632608]
[1610376193815,0.09789,33222.0,33173.0,0.13632608]
[1610376194020,0.09789,33222.0,33164.0,0.08633]
[1610376194226,0.96284756,33222.0,33164.0,0.08633]
[1610376195025,1.23673696,33221.0,33164.0,0.08633]
[1610376195421,0.96358294,33218.0,33164.0,0.08633]
[1610376195623,0.96481853,33219.0,33173.0,0.01]
[1610376195819,0.13632608,33174.0,33173.0,0.10272]
[1610376197822,1.0,33210.0,33173.0,0.10272]
[1610376198223,0.13632608,33174.0,33173.0,0.10272]
[1610376199228,0.13632608,33174.0,33173.0,0.10087514]
[1610376199428,0.12817094,33174.0,33164.0,0.08633]
[1610376199626,0.12817094,33174.0,33101.0,0.2846]
[1610376200030,0.12817094,33174.0,33102.0,0.0004575]
[1610376200227,0.13632608,33123.0,33118.0,0.13632608]
[1610376200427,0.2904,33173.0,33118.0,0.13632608]
[1610376200627,0.2904,33173.0,33118.0,0.21781608]
[1610376201628,0.2904,33173.0,33118.0,0.08149]
[1610376204932,0.13632608,33124.0,33120.0,0.13632608]
[1610376205334,0.2904,33173.0,33120.0,0.13632608]
[1610376205934,3.6552,33165.0,33120.0,0.13632608]
[1610376206132,0.2904,33173.0,33120.0,0.13632608]
[1610376206933,0.13632608,33164.0,33160.0,0.13632608]
[1610376207135,0.98832745,33191.0,33160.0,0.13632608]
[1610376207333,0.98832745,33191.0,33160.0,0.10995]
[1610376207534,0.98926022,33193.0,33160.0,0.00995]
[1610376207937,0.2719,33194.0,33160.0,0.00995]
[1610376208134,0.2719,33194.0,33161.0,0.00045732]
[1610376208337,0.99690587,33197.0,33161.0,0.00045732]
[1610376208736,0.99758448,33203.0,33161.0,0.00045732]
[1610376208934,0.99758448,33203.0,33202.0,0.13632608]
[1610376209157,0.13632608,33210.0,33202.0,0.23875608]
[1610376209334,0.99742889,33219.0,33202.0,0.23875608]
[1610376209535,0.99743686,33227.0,33203.0,0.00045697]
[1610376209734,0.99722535,33229.0,33203.0,0.00045697]
[1610376210145,0.9971552,33233.0,33203.0,0.00045697]
[1610376210547,0.99745376,33231.0,33203.0,0.00045697]
[1610376210936,0.99744155,33234.0,33203.0,0.00045697]
[1610376211536,0.99744155,33234.0,33202.0,0.10243]
[1610376211736,1.54205741,33239.0,33202.0,0.10243]
[1610376211737,0.99761993,33235.0,33202.0,0.10243]
[1610376212336,0.13632608,33203.0,33202.0,0.10243]
[1610376214135,0.13632608,33203.0,33197.0,0.02]
[1610376214336,0.23872608,33203.0,33197.0,0.02]
[1610376215337,0.23872608,33203.0,33160.0,0.00995]
[1610376215536,0.23872608,33203.0,33123.0,0.0053]
[1610376215537,0.2907,33202.0,33123.0,0.0053]
[1610376215741,0.23872608,33203.0,33123.0,0.0053]
[1610376215937,0.23872608,33203.0,33124.0,0.03743272]
[1610376216337,0.13632608,33193.0,33172.0,0.13632608]
[1610376216736,0.1024,33203.0,33173.0,0.00045837]
[1610376216936,0.1024,33203.0,33173.0,0.11113837]
[1610376217337,0.2843,33210.0,33173.0,0.11113837]
[1610376217536,0.2843,33210.0,33174.0,0.00045825]
[1610376218339,0.2843,33210.0,33195.0,0.13632608]
[1610376218737,0.2843,33210.0,33196.0,0.0004582]
[1610376219338,0.2843,33210.0,33194.0,0.07891]
[1610376220343,0.13632608,33195.0,33194.0,0.07891]
[1610376221443,0.2843,33210.0,33194.0,0.07891]
[1610376222244,0.13632608,33195.0,33194.0,0.07706722]
[1610376222645,0.2843,33210.0,33194.0,0.07706722]
[1610376223644,0.2843,33210.0,33173.0,0.11068]
[1610376223846,0.2843,33210.0,33116.0,0.0913]
[1610376224244,0.13632608,33171.0,33170.0,0.13632608]
[1610376224646,0.2843,33210.0,33146.0,0.03743211]
[1610376224846,0.2843,33210.0,33170.0,0.00045845]
[1610376225046,0.2843,33210.0,33170.0,0.07569]
[1610376225447,0.2843,33210.0,33171.0,0.00045851]
[1610376226449,0.2843,33210.0,33173.0,0.13632608]
[1610376227051,0.2843,33210.0,33174.0,0.00045855]
[1610376227453,1.5,33209.0,33174.0,0.00045855]
[1610376227852,1.5,33209.0,33171.0,0.00045855]
[1610376228053,1.5,33209.0,33175.0,0.00045857]
[1610376228254,1.5,33209.0,33172.0,0.00045857]
[1610376228454,0.13632608,33176.0,33172.0,0.00045857]
[1610376228656,0.13632608,33176.0,33170.0,0.07569]
[1610376228858,0.13632608,33176.0,33173.0,0.00045858]
[1610376229054,0.13632608,33176.0,33170.0,0.07569]
[1610376229055,0.13632608,33176.0,33171.0,0.00046087]
[1610376229455,0.13632608,33176.0,33174.0,0.00046089]
[1610376229655,0.13632608,33176.0,33172.0,0.00046089]
[1610376229856,0.13632608,33176.0,33175.0,0.00046089]
[1610376230257,0.13632608,33176.0,33173.0,0.00046089]
[1610376230459,0.13632608,33176.0,33175.0,0.00046089]
[1610376230659,0.13632608,33176.0,33174.0,0.00046091]
[1610376230860,0.2843,33210.0,33174.0,0.00046091]
[1610376231058,0.2843,33210.0,33175.0,0.00046093]
[1610376231460,4.8444,33211.0,33171.0,0.00046087]
[1610376231659,4.8444,33211.0,33176.0,0.00046082]
[1610376232060,4.8444,33211.0,33172.0,0.00046079]
[1610376232465,0.13632608,33208.0,33197.0,0.13632608]
[1610376233060,0.13632608,33208.0,33170.0,0.07569]
[1610376233261,0.13632608,33208.0,33198.0,0.00046056]
[1610376233660,0.13632608,33208.0,33199.0,0.00046058]
[1610376233863,0.13632608,33208.0,33199.0,2e-08]
[1610376234462,0.13632608,33201.0,33199.0,2e-08]
[1610376236466,0.2998,33221.0,33199.0,2e-08]
[1610376236774,1.25997319,33225.0,33199.0,2e-08]
[1610376237173,1.26012524,33226.0,33199.0,2e-08]
[1610376237573,1.5816609,33229.0,33199.0,2e-08]
[1610376237574,1.26181937,33229.0,33199.0,2e-08]
[1610376238373,1.26368506,33226.0,33207.0,0.13632608]
[1610376238774,1.26367493,33224.0,33208.0,0.00046261]
[1610376238968,1.26363256,33226.0,33208.0,0.00046261]
[1610376239370,1.26363256,33226.0,33208.0,0.09880261]
[1610376239571,1.26571517,33223.0,33208.0,0.09880261]
[1610376239973,1.26571517,33223.0,33209.0,0.00046259]
[1610376240273,1.26558408,33225.0,33209.0,0.00046259]
[1610376240473,1.26558408,33225.0,33215.0,0.13632608]
[1610376240672,1.40188949,33226.0,33216.0,0.00046256]
[1610376241072,1.59094752,33229.0,33216.0,0.00046256]
[1610376241073,1.26660398,33225.0,33216.0,0.11006256]
[1610376241473,4.6967,33230.0,33217.0,0.00046251]
[1610376241876,0.25768739,33229.0,33217.0,0.00046251]
[1610376242275,4.6967,33230.0,33217.0,0.00046251]
[1610376242276,3.2613,33230.0,33217.0,0.00046251]
[1610376242474,0.93422064,33241.0,33229.0,0.13632608]
[1610376242675,0.23439377,33248.0,33229.0,0.22609608]
[1610376242875,1.98822459,33285.0,33230.0,0.03735924]
[1610376243075,1.81192459,33285.0,33230.0,0.03735924]
[1610376243274,2.16346717,33303.0,33230.0,0.03735924]
[1610376243674,2.8845628,33316.0,33230.0,0.03735924]
[1610376243675,2.52369586,33317.0,33230.0,0.12765924]
[1610376243874,2.52369586,33317.0,33230.0,1.62765924]
[1610376244075,0.00036879,33316.0,33231.0,0.11110134]
[1610376244476,0.00036879,33316.0,33305.0,0.13632608]
[1610376244694,0.00036877,33318.0,33297.0,0.08628]
[1610376244875,0.00036877,33318.0,33305.0,0.08596]
[1610376245074,0.00036872,33326.0,33305.0,0.08596]
[1610376245475,0.0003687,33317.0,33305.0,0.08596]
[1610376245675,0.0003687,33333.0,33306.0,0.00046415]
[1610376245875,0.00036865,33316.0,33306.0,0.00046415]
[1610376246274,0.00036863,33332.0,33306.0,0.00046415]
[1610376246475,0.00036865,33315.0,33305.0,0.08596]
[1610376246675,0.13632608,33306.0,33305.0,0.08596]
[1610376247078,0.13669473,33306.0,33305.0,0.0864241]
[1610376247275,0.08381,33334.0,33305.0,0.0864241]
[1610376247478,2.8497928,33368.0,33305.0,0.08596]
[1610376247878,2.8492582,33374.0,33305.0,0.08596]
[1610376248077,3.00484839,33376.0,33305.0,0.08596]
[1610376248476,0.1556,33376.0,33305.0,0.08596]
[1610376249680,0.1556,33376.0,33315.0,0.13632608]
[1610376249883,0.1556,33376.0,33315.0,0.20554608]
[1610376251680,1.1556,33376.0,33315.0,0.06922]
[1610376252981,0.0887,33375.0,33315.0,0.06922]
[1610376253180,0.09131,33375.0,33315.0,0.06922]
[1610376253984,0.13632608,33316.0,33315.0,0.06922]
[1610376254181,0.13632608,33316.0,33308.0,4.3236]
[1610376254482,0.10087,33326.0,33308.0,4.3236]
[1610376256787,0.13632608,33309.0,33308.0,4.3236]
[1610376257387,0.13632608,33309.0,33305.0,0.08596]
[1610376257585,0.13632608,33309.0,33297.0,0.08628]
[1610376257786,0.10135,33344.0,33252.0,0.0895]
[1610376257987,0.10135,33344.0,33252.0,0.16343]
[1610376258787,0.10135,33344.0,33302.0,0.13632608]
[1610376258989,0.10135,33344.0,33302.0,0.08578]
[1610376261390,0.13632608,33303.0,33302.0,0.08578]
[1610376261792,0.10135,33344.0,33302.0,0.08578]
[1610376262392,0.09131,33375.0,33302.0,0.08578]
[1610376262393,6.30731,33375.0,33302.0,0.08578]
[1610376262593,0.09131,33375.0,33302.0,0.08578]
[1610376262794,0.0888,33392.0,33302.0,0.08578]
[1610376262992,0.0885,33382.0,33302.0,0.08578]
[1610376263194,0.0888,33392.0,33302.0,0.08578]
[1610376263392,0.091,33375.0,33310.0,0.13632608]
[1610376263592,0.08827,33375.0,33310.0,0.13632608]
[1610376264295,0.08827,33375.0,33302.0,0.08578]
[1610376264494,0.08827,33375.0,33268.0,0.0901]
[1610376264694,0.0896,33374.0,33268.0,0.0901]
[1610376264895,0.08827,33375.0,33264.0,0.0913]
[1610376265096,0.08827,33375.0,33264.0,0.10813]
[1610376265296,0.08827,33375.0,33307.0,0.13632608]
[1610376265696,0.08827,33375.0,33307.0,0.21529608]
[1610376266097,0.08827,33375.0,33307.0,0.07897]
[1610376267699,0.13632608,33308.0,33307.0,0.21529608]
[1610376268298,0.09964,33355.0,33307.0,0.07897]
[1610376268501,0.09964,33355.0,33307.0,0.07943981]
[1610376268898,0.00957865,33354.0,33308.0,0.00046981]
[1610376272201,0.00957865,33354.0,33320.0,0.13632608]
[1610376272401,0.00957865,33354.0,33320.0,0.22049608]
[1610376272806,0.00957865,33354.0,33321.0,0.00046539]
[1610376273002,0.00036841,33354.0,33321.0,0.00046539]
[1610376273203,0.00036837,33353.0,33321.0,0.00046539]
[1610376273804,0.00957767,33354.0,33321.0,0.00046539]
[1610376274003,0.00036837,33352.0,33321.0,0.00046539]
[1610376274204,0.00036837,33352.0,33328.0,0.13632608]
[1610376274403,0.00957792,33354.0,33328.0,0.20670608]
[1610376274603,0.00036837,33351.0,33328.0,0.20670608]
[1610376274805,0.00036835,33353.0,33328.0,0.20670608]
[1610376275005,0.00036833,33350.0,33328.0,0.20670608]
[1610376275407,0.00036829,33352.0,33329.0,0.00046533]
[1610376275614,3.9614,33358.0,33328.0,0.20670608]
[1610376275615,0.00036827,33357.0,33328.0,0.20670608]
[1610376275810,3.9614,33358.0,33328.0,0.20670608]
[1610376276213,3.9614,33358.0,33352.0,0.13632608]
[1610376276412,3.9614,33358.0,33347.0,0.10729]
[1610376277809,3.9614,33358.0,33348.0,0.00046501]
[1610376278410,3.9614,33358.0,33357.0,0.13632608]
[1610376278611,3.9614,33358.0,33357.0,0.24386608]
[1610376279010,3.9614,33358.0,33357.0,0.10754]
[1610376279620,4.9614,33358.0,33347.0,0.10729]
[1610376280011,4.9614,33358.0,33328.0,0.07038]
[1610376280219,1.5,33357.0,33320.0,0.08417]
[1610376280410,0.13632608,33321.0,33252.0,1.98158971]
[1610376280611,0.13632608,33321.0,33244.0,1.99643653]
[1610376280812,0.13632608,33321.0,33297.0,0.00046774]
[1610376281011,0.0691,33341.0,33297.0,0.10505774]
[1610376281411,0.00036847,33340.0,33310.0,4.6354]
[1610376281611,0.09116847,33340.0,33297.0,0.10459]
[1610376281811,0.00036847,33340.0,33297.0,0.10459]
[1610376282010,0.00036847,33339.0,33297.0,0.10459]
[1610376282411,0.13632608,33307.0,33300.0,0.13632608]
[1610376282610,0.00036847,33340.0,33297.0,0.10459]
[1610376282811,0.0691,33341.0,33297.0,0.10459]
[1610376283210,0.00036845,33340.0,33298.0,0.00046787]
[1610376283611,0.00036845,33340.0,33297.0,0.10459]
[1610376284211,0.00036845,33350.0,33298.0,0.00046786]
[1610376284413,0.13632608,33303.0,33298.0,0.00046786]
[1610376284614,0.13632608,33303.0,33297.0,0.24091608]
[1610376285013,0.13632608,33303.0,33298.0,0.00046786]
[1610376285213,0.08458,33351.0,33298.0,0.00046786]
[1610376285413,0.08458,33351.0,33297.0,0.24091608]
[1610376285612,0.08458,33351.0,33299.0,0.00046783]
[1610376285814,0.08458,33351.0,33298.0,0.00046776]
[1610376286015,0.2881,33356.0,33298.0,0.00046776]
[1610376286414,0.13632608,33329.0,33319.0,0.13632608]
[1610376287514,0.13632608,33329.0,33320.0,0.00046989]
[1610376287716,0.2881,33356.0,33320.0,0.08724]
[1610376287915,0.2881,33356.0,33321.0,0.00046986]
[1610376288316,0.2881,33356.0,33346.0,0.13632608]
[1610376288718,0.2881,33356.0,33346.0,0.22527608]
[1610376289718,0.2881,33356.0,33346.0,0.08895]
[1610376290919,0.13632608,33347.0,33346.0,0.08895]
[1610376291520,0.2881,33356.0,33346.0,0.08895]
[1610376292123,0.0003682,33355.0,33346.0,0.08895]
[1610376292722,0.2881,33356.0,33346.0,0.08895]